[Event "101st Irish Championship 2022"]
[Site "Dublin"]
[Date "2022.07.05"]
[Round "1.6"]
[White "Cafolla, Peter"]
[Black "O`Donnell, Conor"]
[Result "0-1"]
[ECO "C02"]
[WhiteElo "1937"]
[BlackElo "2269"]
[Annotator "TA"]
[PlyCount "61"]
[EventDate "2022.07.05"]
[EventType "swiss"]
[EventCountry "IRL"]
[SourceTitle "playchess.com"]
[Source "ChessBase"]
[SourceQuality "1"]
[TimeControl "40/6300+30:1800+30"]

{[%evp 13,61,-46,-50,-66,0,-69,-57,-57,-22,-14,-17,-37,-36,-185,-60,-49,-38,-134,-151,-191,-119,-693,-647,-1068,-1088,-1104,-1088,-8983,-1040,-1021,-872,-29984,-575,-565,-563,-563,-552,-535,-522,-664,-636,-1552,-1516,-29988,-535,-2064,-535,-528,-522,-570]} 1. e4 {[%emt 0:00:02][%cal Be2e4,Be4e5][%mdl 32]} e6 {[%emt 0:00:17]} 2. d4 {[%emt 0:00:07]} d5 {[%emt 0:00:08]} 3. e5 {[%emt 0:00:30]} c5 {[%emt 0:00:11]} 4. c3 {[%emt 0:00:05]} Nc6 {[%emt 0:00:11]} 5. Nf3 {[%emt 0:00:07]} Bd7 {[%emt 0:01:23]} 6. a3 {[%emt 0:03:53]} f6 {[%emt 0:00:52]} 7. b4 {[%emt 0:00:13]} fxe5 {[%emt 0:01:26]} 8. dxc5 {[%emt 0:08:11] C02: French: Advance Variation.} Qc7 {[%emt 0:26:14] [#]} (8... e4 $15 9. Nd4 g6) 9. Nbd2 $146 {[%emt 0:17:52]} (9. c4 $11) ({Predecessor:} 9. Ng5 Nf6 10. Be2 Ne7 11. O-O g6 12. f4 e4 13. c4 Bg7 14. Bb2 Rd8 15. Be5 Qc8 {1-0 (36) Dergatschova,A (2187)-Mundorf,J (2115) Nordrheinwestfalen 2011}) 9... Nf6 {[%emt 0:03:18]} 10. Be2 {[%emt 0:04:21] Black is slightly better.} g6 {[%emt 0:17:58]} 11. Bb2 {[%emt 0:09:33]} Bg7 {[%emt 0:02:29]} 12. c4 {[%emt 0:11:13]} e4 {[%emt 0:08:35]} 13. cxd5 {[%emt 0:09:09]} (13. Nd4 $15) 13... exd5 {[%emt 0:00:04]} (13... exf3 $19 14. dxc6 fxg2 15. cxd7+ Nxd7) 14. Nd4 $1 $15 {[%emt 0:02:04] Black must now prevent Nb5.} O-O {[%emt 0:01:23][%cal Of6g4] Threatens to win with ...Ng4!} 15. N2b3 {[%emt 0:03:02]} (15. Nb5 $15 Qf4 16. O-O) 15... Ne5 $1 $17 {[%emt 0:02:36] And now ...Nfg4 would win.} 16. h3 {[%emt 0:10:53] Against Nfg4} e3 {[%emt 0:08:47]} ({Black should play} 16... Nh5 $1 $19 {[%cal Rh5g3]} 17. O-O Nf4) 17. Nf3 $2 {[%emt 0:06:02][%mdl 8192]} (17. O-O $17) 17... exf2+ {[%emt 0:01:57]} 18. Kf1 {[%emt 0:00:30]} Nxf3 {[%emt 0:04:28]} 19. Bxf3 {[%emt 0:04:19]} Rae8 {[%emt 0:05:12]} 20. Qd3 {[%emt 0:08:28]} Bf5 {[%emt 0:07:08]} (20... Qg3 $142 21. Be5 Rxe5) 21. Qd2 $19 {[%emt 0:02:33]} Qg3 {[%emt 0:02:00][%cal Of5d3] ( -> ...Bd3+!)} 22. Nd4 {[%emt 0:05:34]} Re1+ {[%emt 0:12:34]} (22... Ne4 $142 23. Qd3 Bxd4 24. Bxd4 {[#]} Nd2+ $1 {[%mdl 512]} 25. Qxd2 Bd3+ $1 {[%mdl 512]} 26. Be2 Bxe2+ 27. Qxe2 Rxe2 28. Kxe2 Qxg2 29. Rhf1 Qe4+ 30. Be3 Rf3 31. Ra2 Qxe3+ 32. Kd1 Qd3+ 33. Rd2 Qxf1+ 34. Kc2 Qc4+ 35. Kb2 Qb3+ 36. Kc1 f1=Q+ 37. Rd1 Qfxd1#) 23. Rxe1 {[%emt 0:00:22]} fxe1=Q+ {[%emt 0:00:21]} 24. Qxe1 {[%emt 0:00:05]} Bd3+ {[%emt 0:00:33]} 25. Ne2 {[%emt 0:00:52]} Ne4 {[%emt 0:01:51]} 26. Bxg7 {[%emt 0:03:39]} Kxg7 {[%emt 0:00:44]} 27. Qa1+ {[%emt 0:03:43]} Kg8 {[%emt 0:05:05][%csl Ge4][%cal Rg3f2]} 28. Qe1 {[%emt 0:00:06] Against Qf2+} g5 {[%emt 0:01:03]} (28... Rxf3+ $142 29. gxf3 Qxf3+ 30. Kg1 Bxe2 31. Qh4 g5 32. Qe1 Qe3+ 33. Kg2 Bf3+ 34. Kh2 Qd4 35. Rf1 Qb2+ 36. Rf2 Qe5+ 37. Kg1 Qg3+ 38. Kf1 Qxh3+ 39. Kg1 Qh1#) 29. a4 {[%emt 0:01:53] Black is clearly winning.} h5 {[%emt 0:00:12]} (29... Rxf3+ $142 30. gxf3 Qxf3+ 31. Kg1 Bxe2) 30. Qxg3 {[%emt 0:00:32]} Nxg3+ {[%emt 0:00:07]} 31. Kg1 {[%emt 0:00:00] Weighted Error Value: White=1.84/Black=1.14} 0-1

[Event "101st Irish Championship 2022"]
[Site "Dublin"]
[Date "2022.07.05"]
[Round "1.7"]
[White "Flynn, Jacob"]
[Black "O`cuilleanain, Oisin"]
[Result "1/2-1/2"]
[ECO "A05"]
[WhiteElo "2199"]
[BlackElo "1936"]
[Annotator "TA"]
[PlyCount "94"]
[EventDate "2022.07.05"]
[EventType "swiss"]
[EventCountry "IRL"]
[SourceTitle "playchess.com"]
[Source "ChessBase"]
[SourceQuality "1"]
[TimeControl "40/6300+30:1800+30"]

{[%evp 9,94,6,3,0,0,0,6,4,0,0,0,2,12,0,5,0,-10,-8,-3,-58,-62,-62,-47,-47,-40,-41,-41,-46,-47,-48,-38,-66,-68,-68,-65,-64,-60,-61,-60,-60,-54,-61,-49,-49,-36,-65,-4,-4,-6,-4,0,-35,-37,-72,-72,-72,-52,-49,-59,-149,-143,-152,-130,-130,-130,-148,-61,-68,-61,-61,-61,-61,0,0,0,0,0,0,0,0,0,0,0,0,0,0,0]} 1. Nf3 {[%emt 0:00:03]} Nf6 {[%emt 0:00:11]} 2. g3 {[%emt 0:00:09]} b5 {[%emt 0:01:09]} 3. e3 {[%emt 0:06:12]} a6 {[%emt 0:02:12]} 4. a4 {[%emt 0:02:20]} b4 {[%emt 0:14:56]} 5. Bg2 {[%emt 0:05:18]} Bb7 {[%emt 0:04:03]} 6. O-O {[%emt 0:00:50] A05: Réti Opening: 1 Nf3 Nf6.} e6 {[%emt 0:01:25]} 7. d3 {[%emt 0:10:57] [#]} Be7 $146 {[%emt 0:02:07]} ({Predecessor:} 7... c5 8. c4 Be7 9. Nbd2 O-O 10. b3 d5 11. Bb2 Nbd7 12. Qe2 Qc7 13. Rac1 Rfe8 {½-½ (54) Roeder,M (2367)-Thybo,J (2575) Benasque 2021}) 8. e4 {[%emt 0:04:25]} d6 {[%emt 0:00:44]} 9. Nbd2 {[%emt 0:02:21]} O-O {[%emt 0:06:16]} 10. Nc4 {[%emt 0:03:42]} c5 {[%emt 0:05:00]} 11. a5 {[%emt 0:18:21]} Nc6 {[%emt 0:12:04]} 12. e5 {[%emt 0:06:28]} Ne8 {[%emt 0:00:06][%cal Bf6e8,Be8d6,Bd6f5,Bf5e3][%mdl 32]} 13. exd6 {[%emt 0:01:31]} Nxd6 {[%emt 0:00:06]} 14. Nfe5 {[%emt 0:07:27]} (14. Nfd2 $11) 14... Nxe5 $15 {[%emt 0:04:17]} 15. Nxe5 {[%emt 0:16:01]} Bxg2 {[%emt 0:18:09]} 16. Kxg2 {[%emt 0:00:01]} Nf5 {[%emt 0:00:10]} 17. Nc4 {[%emt 0:12:42]} Qd5+ {[%emt 0:02:45]} 18. f3 {[%emt 0:02:04]} Rad8 {[%emt 0:01:03]} 19. b3 {[%emt 0:05:16]} Bf6 {[%emt 0:01:18]} 20. Ra4 {[%emt 0:00:01]} h5 {[%emt 0:03:43]} 21. Ne3 {[%emt 0:00:55]} Nxe3+ {[%emt 0:02:27]} (21... Qb7 {looks sharper.} 22. Ra2 Rfe8 23. Nc4 g5) 22. Bxe3 {[%emt 0:00:02]} Rb8 {[%emt 0:00:15]} 23. Qe2 {[%emt 0:02:26]} Rfc8 {[%emt 0:01:30]} 24. Bf4 {[%emt 0:01:50]} Rb5 {[%emt 0:00:07]} 25. Qe4 {[%emt 0:00:55]} g6 {[%emt 0:12:29]} 26. Re1 {[%emt 0:00:47]} Qd8 {[%emt 0:00:18]} 27. h4 {[%emt 0:02:14]} Rxa5 {[%emt 0:00:56]} ({Black should try} 27... Qd7 $15) 28. Rxa5 $11 {[%emt 0:00:01]} Qxa5 {[%emt 0:00:10]} 29. Qb7 {[%emt 0:00:23]} Re8 {[%emt 0:00:01]} 30. Qc6 {[%emt 0:01:21]} Qb5 {[%emt 0:00:06]} 31. Qxb5 {[%emt 0:00:46]} axb5 {[%emt 0:00:02]} 32. Be5 {[%emt 0:01:36]} Bxe5 {[%emt 0:00:24]} (32... Kg7 $5) 33. Rxe5 $17 {[%emt 0:00:01][%mdl 4096] Endgame KR-KR} Rc8 {[%emt 0:00:07]} 34. Re1 {[%emt 0:01:49] [#]} (34. g4 $15) 34... c4 $1 {[%emt 0:00:11]} 35. Re4 {[%emt 0:00:13]} cxd3 {[%emt 0:09:05]} 36. cxd3 {[%emt 0:00:01]} Rc2+ {[%emt 0:00:07]} 37. Kh3 {[%emt 0:00:08]} Rd2 {[%emt 0:00:36]} ({Black should play} 37... Rc3 $17 38. Rxb4 Rxd3) 38. Rd4 $1 $15 {[%emt 0:01:23]} e5 {[%emt 0:01:12]} 39. Rxb4 {[%emt 0:00:36]} Rxd3 {[%emt 0:00:04]} 40. Rxb5 {[%emt 0:00:48]} f6 {[%emt 0:00:12]} (40... Rxf3 $15 41. Rxe5 Rxb3) 41. Kg2 $11 {[%emt 0:30:42] The position is equal.} Rd2+ {[%emt 0:30:52]} 42. Kf1 {[%emt 0:00:00]} Kg7 {[%emt 0:00:00]} 43. Rb7+ {[%emt 0:00:00]} Kh6 {[%emt 0:00:00]} 44. Rb6 {[%emt 0:00:00]} f5 {[%emt 0:00:00]} 45. Rb5 {[%emt 0:00:00]} e4 {[%emt 0:00:00]} 46. fxe4 {[%emt 0:00:00]} fxe4 {[%emt 0:00:00]} 47. Rb4 {[%emt 0:00:00]} Rd3 {[%emt 0:00:00] Weighted Error Value: White=0.10 (very precise) /Black=0.09 (flawless)} 1/2-1/2

[Event "101st Irish Championship 2022"]
[Site "Dublin"]
[Date "2022.07.05"]
[Round "1.8"]
[White "Keogh, Eamon"]
[Black "Daly, Colm"]
[Result "0-1"]
[ECO "B06"]
[WhiteElo "1931"]
[BlackElo "2190"]
[Annotator "TA"]
[PlyCount "66"]
[EventDate "2022.07.05"]
[EventType "swiss"]
[EventCountry "IRL"]
[SourceTitle "playchess.com"]
[Source "ChessBase"]
[SourceQuality "1"]
[TimeControl "40/6300+30:1800+30"]

{[%evp 14,66,16,9,18,19,12,12,68,40,63,45,41,50,54,46,62,29,32,26,37,33,50,39,49,31,46,18,34,0,44,29,33,0,28,0,35,0,35,0,2,-223,-221,-224,-185,-187,-168,-186,-145,-444,-448,-634,-625,-855,-836]} 1. e4 {[%emt 1:46:00]} d6 {[%emt 0:07:53]} 2. d4 {[%emt 0:00:00]} g6 {[%emt 0:00:14]} 3. Nf3 {[%emt 0:00:00]} Bg7 {[%emt 0:00:10]} 4. Bc4 {[%emt 0:00:00]} Nf6 {[%emt 0:00:59]} 5. Qe2 {[%emt 0:00:00]} O-O {[%emt 0:00:56]} 6. O-O {[%emt 0:00:00]} Bg4 {[%emt 0:01:03]} 7. h3 {[%emt 0:00:00]} Bxf3 {[%emt 0:00:24]} 8. Qxf3 {[%emt 0:00:00] Threatening e5.} Nc6 {[%emt 0:00:23] Prevents e5. B06: Modern Defence.} 9. c3 {[%emt 0:00:00]} e5 {[%emt 0:00:10]} 10. d5 {[%emt 0:00:00]} Nb8 {[%emt 0:00:25] [#]} (10... Ne7 $1 $11) 11. Na3 $146 {[%emt 0:00:00][%cal Bb1a3,Ba3c2,Bc2e3][%mdl 32]} ({Predecessor:} 11. Bd3 Nbd7 12. c4 Nh5 13. Re1 Nf4 14. Bf1 f5 15. g3 Nc5 16. exf5 Nh5 17. Qd1 {1-0 (52) Martin Barcelo,C (2166)-Dalaud,D (2306) Barcelona 2021}) 11... Kh8 {[%emt 0:01:58]} 12. Nc2 {[%emt 0:00:00]} Nbd7 {[%emt 0:00:07]} 13. Bg5 {[%emt 0:00:00][%cal Bc1g5,Bg5h4,Bh4g3][%mdl 32]} h6 {[%emt 0:06:29]} 14. Bh4 {[%emt 0:00:00]} Qe8 {[%emt 0:01:06]} 15. g4 {[%emt 0:00:00]} Nh7 {[%emt 0:00:28][%cal Of7f5]} 16. Ne3 {[%emt 0:00:00]} Bf6 {[%emt 0:02:52]} 17. Bg3 {[%emt 0:00:00]} Qe7 {[%emt 0:00:43]} 18. Bd3 {[%emt 0:00:00]} Bh4 {[%emt 0:07:06]} 19. Rae1 {[%emt 0:00:00]} Kg7 {[%emt 0:03:09]} 20. Qg2 {[%emt 0:00:00]} Bg5 {[%emt 0:02:12]} 21. Qh2 {[%emt 0:00:00]} Bh4 {[%emt 0:06:03]} 22. Ng2 {[%emt 0:00:00]} Bxg3 {[%emt 0:00:16]} 23. Qxg3 {[%emt 0:00:00]} Rh8 {[%emt 0:02:01]} 24. Bb5 {[%emt 0:00:00]} Ndf6 {[%emt 0:00:49][%cal Oc7c6]} 25. Bd3 {[%emt 0:00:00]} a6 {[%emt 0:07:45]} 26. Kh2 {[%emt 0:00:00]} h5 {[%emt 0:03:44] [#] Strongly threatening ...hxg4.} 27. f4 $2 {[%emt 0:00:00]} (27. f3 $1 $11 {and White has nothing to worry.}) 27... hxg4 $19 {[%emt 0:01:08]} 28. h4 {[%emt 0:00:00]} Nh5 {[%emt 0:08:24]} 29. Qxg4 {[%emt 0:00:00]} N7f6 $36 {[%emt 0:00:15][%mdl 2048] Black is really pushing.} 30. Qg5 {[%emt 0:00:00]} Nxf4 {[%emt 0:03:29]} 31. Rxf4 {[%emt 0:00:00][%mdl 8192]} (31. Nxf4 $17 {was the only chance.} exf4 32. Rxf4 Nxd5 33. Qxe7 (33. Qxd5 $2 Rxh4+ 34. Kg3 Rxf4 $19) 33... Nxe7 34. Bc4) 31... exf4 {[%emt 0:03:00] Black is clearly winning.} 32. e5 {[%emt 0:00:00]} (32. Qxf4 $142 Rh5 33. c4) 32... dxe5 {[%emt 0:00:17]} 33. Rxe5 {[%emt 0:00:00] [#]} Ng4+ $1 {[%emt 0:46:02][%mdl 512] Weighted Error Value: White=0.55/Black=0.13 (very precise)} 0-1

[Event "101st Irish Championship 2022"]
[Site "Dublin"]
[Date "2022.07.05"]
[Round "1.9"]
[White "Carroll, Peter"]
[Black "Goss, Alex"]
[Result "1/2-1/2"]
[ECO "D00"]
[WhiteElo "2116"]
[BlackElo "1859"]
[Annotator "TA"]
[PlyCount "93"]
[EventDate "2022.07.05"]
[EventType "swiss"]
[EventCountry "IRL"]
[SourceTitle "playchess.com"]
[Source "ChessBase"]
[SourceQuality "1"]
[TimeControl "40/6300+30:1800+30"]

{[%evp 9,93,-14,-16,-11,15,20,12,17,42,45,29,14,14,5,12,8,15,10,6,6,0,0,7,6,31,18,21,17,19,13,22,0,0,0,0,0,8,8,16,0,35,0,32,0,0,0,5,0,0,0,29,0,0,0,0,0,0,0,0,0,0,0,0,0,0,0,0,0,7,0,0,0,8,3,4,4,10,0,0,0,0,0,0,0,0,0]} 1. d4 {[%emt 0:05:15]} d5 {[%emt 0:00:14]} 2. Nc3 {[%emt 0:00:15]} Nf6 {[%emt 0:00:08]} 3. Bf4 {[%emt 0:00:05]} c5 {[%emt 0:00:08]} 4. e4 {[%emt 0:00:01]} e6 {[%emt 0:03:46]} 5. dxc5 {[%emt 0:12:03]} Bxc5 {[%emt 0:05:28] ...Qb6 is the strong threat.} 6. exd5 {[%emt 0:06:12] D00: 1 d4 d5: Unusual lines.} Nxd5 {[%emt 0:01:07]} 7. Nxd5 {[%emt 0:00:16] [#]} exd5 $146 {[%emt 0:00:34]} ({Predecessor:} 7... Qxd5 8. Qxd5 exd5 9. O-O-O Be6 10. Be5 O-O 11. Bd4 Be7 12. Ne2 Nc6 13. Be3 Bf6 {½-½ (60) Paravyan,D (2631)-Kobalia,M (2594) Moscow 2021}) 8. Qe2+ {[%emt 0:00:10]} Qe7 {[%emt 0:00:31]} 9. Qxe7+ {[%emt 0:02:50]} Kxe7 {[%emt 0:00:08]} 10. Nf3 {[%emt 0:00:52]} Nc6 {[%emt 0:01:04]} (10... f6 {is more complex.} 11. O-O-O Bxf2 12. Rxd5 Be6) 11. Rd1 {[%emt 0:02:55]} Rd8 {[%emt 0:05:10]} 12. Bd3 {[%emt 0:16:39]} h6 {[%emt 0:03:34]} 13. O-O {[%emt 0:03:13]} Bg4 {[%emt 0:03:11]} 14. Rde1+ {[%emt 0:08:16]} Kf8 {[%emt 0:01:18]} 15. Ne5 {[%emt 0:02:48]} Nxe5 {[%emt 0:01:49]} 16. Bxe5 {[%emt 0:00:01]} Bd6 {[%emt 0:00:24]} 17. Bd4 {[%emt 0:00:21]} b6 {[%emt 0:02:49]} 18. f3 {[%emt 0:08:46][%cal Bf2f3,Bf3f4][%mdl 32]} Be6 {[%emt 0:00:52]} 19. f4 {[%emt 0:02:39]} Bc5 {[%emt 0:02:03]} 20. Bxc5+ {[%emt 0:03:15]} bxc5 {[%emt 0:00:07]} 21. f5 {[%emt 0:00:01]} Bd7 {[%emt 0:00:19]} 22. f6 {[%emt 0:00:25]} Re8 {[%emt 0:01:34]} 23. fxg7+ {[%emt 0:00:37]} Kxg7 {[%emt 0:00:17]} 24. Kf2 {[%emt 0:02:23]} Rxe1 {[%emt 0:00:30]} 25. Rxe1 $11 {[%emt 0:00:02][%mdl 4096] Endgame KRB-KRB} Re8 {[%emt 0:00:11]} 26. Be2 {[%emt 0:08:48]} Bf5 {[%emt 0:04:18]} 27. c3 {[%emt 0:00:29]} a5 {[%emt 0:00:35]} 28. Rd1 {[%emt 0:01:26]} Be6 {[%emt 0:01:20]} 29. Bf3 {[%emt 0:00:24]} Rd8 {[%emt 0:00:24]} 30. Rd2 {[%emt 0:02:14]} Kf6 {[%emt 0:06:43] The position is equal.} 31. b3 {[%emt 0:03:04]} Kg5 {[%emt 0:03:25]} 32. Rd3 {[%emt 0:08:19]} f5 {[%emt 0:01:22]} 33. Re3 {[%emt 0:00:39]} Rd6 {[%emt 0:01:22]} 34. g3 {[%emt 0:00:05]} Kf6 {[%emt 0:02:39]} 35. Rd3 {[%emt 0:01:25]} Ke5 {[%emt 0:00:43]} 36. Re3+ {[%emt 0:00:15]} Kf6 {[%emt 0:00:08]} 37. Re1 {[%emt 0:04:50]} Rb6 {[%emt 0:01:59]} 38. Ke3 {[%emt 0:01:30]} Ke5 {[%emt 0:01:36]} 39. Kd3+ {[%emt 0:00:10]} Kf6 {[%emt 0:00:07]} 40. Kc2 {[%emt 0:03:53]} Rb8 {[%emt 0:02:07]} 41. Bd1 {[%emt 0:34:08]} Rb6 {[%emt 0:30:50]} 42. Rf1 {[%emt 0:00:17]} Ke5 {[%emt 0:00:24]} 43. Rf4 {[%emt 0:00:18]} d4 {[%emt 0:01:10]} 44. cxd4+ {[%emt 0:00:00]} cxd4 {[%emt 0:00:00]} 45. Kd3 {[%emt 0:00:00]} Rd6 {[%emt 0:00:00]} 46. Bf3 {[%emt 0:00:00]} a4 {[%emt 0:00:00]} 47. Bd1 {[%emt 0:00:00] Weighted Error Value: White=0.06 (flawless) /Black=0.07 (flawless)} 1/2-1/2

[Event "101st Irish Championship 2022"]
[Site "Dublin"]
[Date "2022.07.05"]
[Round "1.10"]
[White "Ivanov, Andrey A."]
[Black "Doyle, Anthony"]
[Result "1-0"]
[ECO "C59"]
[WhiteElo "2180"]
[BlackElo "2116"]
[Annotator "TA"]
[PlyCount "79"]
[EventDate "2022.07.05"]
[EventType "swiss"]
[EventCountry "IRL"]
[SourceTitle "playchess.com"]
[Source "ChessBase"]
[SourceQuality "1"]
[TimeControl "40/6300+30:1800+30"]

{[%evp 20,79,4,0,0,0,22,21,47,45,39,43,62,46,55,33,97,95,79,43,163,166,171,166,152,95,253,224,214,189,189,181,416,415,436,433,511,507,544,534,541,536,543,526,684,517,513,393,516,508,1022,1050,1039,1032,1017,937,1164,179,1031,575,29998,29999]} 1. e4 {[%emt 0:00:03]} e5 {[%emt 0:00:13]} 2. Nf3 {[%emt 0:00:22]} Nc6 {[%emt 0:00:11]} 3. Bc4 {[%emt 0:00:06]} Nf6 {[%emt 0:00:50]} 4. Ng5 {[%emt 0:00:33]} d5 {[%emt 0:00:13]} 5. exd5 {[%emt 0:00:19]} Na5 {[%emt 0:00:21]} 6. Bb5+ {[%emt 0:00:21]} c6 {[%emt 0:00:08]} 7. dxc6 {[%emt 0:00:17]} bxc6 {[%emt 0:00:07]} 8. Be2 {[%emt 0:00:18]} h6 {[%emt 0:01:00]} 9. Nh3 {[%emt 0:00:29]} Bc5 {[%emt 0:05:11]} 10. O-O {[%emt 0:00:57]} O-O {[%emt 0:01:18]} 11. d3 {[%emt 0:01:15]} Nb7 {[%emt 0:12:25] C59: Two Knights: 4 Ng5 d5 5 exd5 Na5 5 Bb5+ c6 6 dxc6 bxc6 7 Be2.} 12. Kh1 {[%emt 0:01:12] [#]} Qe7 $146 {[%emt 0:10:50]} ({Predecessor:} 12... Bb6 13. Nd2 Nd6 14. Bf3 Qc7 15. Ng1 Ba6 16. c4 Rad8 17. Qa4 Bc8 18. b4 c5 19. Bb2 cxb4 20. Bxe5 {0-1 (72) Veinger,I (2585)-Timmerman,G (2710) Norway 1994}) 13. Nc3 {[%emt 0:07:32]} Nd5 {[%emt 0:17:44] The position is equal.} 14. Nxd5 {[%emt 0:09:03]} cxd5 {[%emt 0:00:10]} 15. f4 {[%emt 0:00:16][%cal Bf2f4,Bf4f5][%mdl 32]} Bxh3 {[%emt 0:10:32]} 16. gxh3 {[%emt 0:00:22]} e4 {[%emt 0:00:12]} 17. f5 {[%emt 0:02:50] And now d4 would win.} f6 {[%emt 0:05:57]} (17... e3 $14) 18. d4 $16 {[%emt 0:00:51]} Bb6 {[%emt 0:00:42]} 19. Rg1 {[%emt 0:01:55] Hoping for Bxh6.} Kh7 {[%emt 0:03:15]} (19... Nd6 $14) 20. Bh5 $1 $18 {[%emt 0:00:54]} Nd6 {[%emt 0:00:27]} 21. Bg6+ $1 {[%emt 0:00:20]} ({Worse is} 21. Qg4 Bxd4 22. Rd1 Be5 $11) 21... Kh8 {[%emt 0:00:23]} 22. c3 {[%emt 0:03:59]} (22. Qh5 $142 $1 {[%cal Oc1h6] Threatening mate with Bxh6!} e3 23. Qg4) 22... Nf7 {[%emt 0:06:09] This costs Black the game.} (22... e3 $2 23. Qf3 $18) (22... Rfd8 $16) 23. h4 {[%emt 0:00:49]} Bc7 {[%emt 0:03:41]} 24. Be3 {[%emt 0:01:25] aiming for Rg2.} Rab8 {[%emt 0:01:06]} 25. Rb1 {[%emt 0:01:54][%cal Ba1b1,Bb1g1,Bg1g2][%mdl 32]} Nd6 $2 {[%emt 0:00:44] [#]} (25... Rb7 26. b3 a5) 26. Qh5 $1 {[%emt 0:00:27][%cal Oe3h6]} Nf7 {[%emt 0:00:42]} (26... Nc4 {[#] gets mated.} 27. Bxh6 $1 {[%mdl 512]} (27. Qe2 Rb7 $11) 27... Rfc8 28. Bf4+ Kg8 29. Qh7+ Kf8 30. Qh8#) 27. Rg2 {[%emt 0:06:04]} Bd6 {[%emt 0:02:10]} 28. Rbg1 {[%emt 0:01:03]} a5 {[%emt 0:05:06] [#]} 29. Bh7 $1 {[%emt 0:01:32][%mdl 512] This bishop pair is nice.} Rg8 {[%emt 0:04:53]} 30. Bxg8 {[%emt 0:00:58]} Rxg8 {[%emt 0:00:13]} 31. Rg6 {[%emt 0:00:49]} Kh7 {[%emt 0:04:33]} 32. Qg4 {[%emt 0:00:26][%cal Rg6g7]} Qf8 {[%emt 0:01:53]} 33. Rg2 {[%emt 0:04:18]} Bc7 {[%emt 0:05:45]} 34. Qh5 {[%emt 0:01:11]} Qe7 {[%emt 0:03:06] [#]} (34... Bd6 $142 35. b3 a4) 35. Bg5 $1 {[%emt 0:02:37]} fxg5 {[%emt 0:02:17]} 36. hxg5 {[%emt 0:01:19]} Nxg5 {[%emt 0:05:54]} 37. R6xg5 {[%emt 0:00:53][%cal Bg6g5,Bg5h5,Bh5h6][%mdl 32] Qg6+ would kill now.} Bd8 {[%emt 0:00:46]} 38. Qg6+ {[%emt 0:00:45]} Kh8 {[%emt 0:00:06]} 39. Rh5 {[%emt 0:00:15][%cal Oh5h6] Intending Rxh6+! and mate.} Qf6 {[%emt 0:00:43] [#]} 40. Rxh6+ $3 {[%emt 0:00:11][%mdl 512] Weighted Error Value: White=0.14 (very precise) /Black=0.48} 1-0